bitfinex/quotes_SOLUSD_20251013
["timestamp","ask_amount","ask_price","bid_price","bid_amount"]
[1760348092036,0.65,197.93,197.92,9.49672537]
[1760348092930,0.65,197.93,197.92,14.54927185]
[1760348093314,1e-08,197.94,197.93,20.8]
[1760348093511,1e-08,197.94,197.93,30.29672537]
[1760348093713,1e-08,197.94,197.93,41.17320058]
[1760348093924,1e-08,197.94,197.93,41.86320058]
[1760348094427,0.10496722,197.96,197.94,10.87647521]
[1760348094623,0.10496722,197.96,197.95,20.37320058]
[1760348094815,0.10066471,197.96,197.95,20.37320058]
[1760348095014,0.10066471,197.96,197.95,25.42498133]
[1760348096026,0.10066471,197.96,197.95,5.05178075]
[1760348096218,0.75066471,197.96,197.95,14.54850612]
[1760348096406,0.75066471,197.96,197.92,12.6313662]
[1760348096407,0.75066471,197.96,197.88,2.02567543]
[1760348096607,0.65,197.95,197.91,9.49672537]
[1760348096813,0.65,197.94,197.9,9.49672537]
[1760348097025,0.65,197.93,197.92,5.05254648]
[1760348097225,0.65,197.93,197.92,14.54927185]
[1760348097408,0.65,197.93,197.92,5.05254648]
[1760348099011,0.65,197.93,197.91,5.05277573]
[1760348099211,0.65,197.92,197.91,14.5495011]
[1760348100108,0.65,197.94,197.91,27.18150554]
[1760348100315,0.65,197.94,197.93,9.49672537]
[1760348100514,0.10066471,197.96,197.93,9.49672537]
[1760348100717,0.10066471,197.96,197.95,9.49672537]
[1760348101031,0.75066471,197.96,197.95,14.54850612]
[1760348101431,0.75066471,197.96,197.94,20.8]
[1760348101628,0.65,197.95,197.94,20.8]
[1760348103108,0.65,197.95,197.94,25.85203597]
[1760348104616,0.10066471,197.96,197.94,25.85203597]
[1760348104816,0.75066471,197.96,197.94,25.85203597]
[1760348105218,0.65,197.95,197.94,25.85203597]
[1760348107836,0.65,197.95,197.91,12.63199541]
[1760348108132,0.65,197.94,197.92,5.05254648]
[1760348109723,0.65,197.94,197.92,85.45254648]
[1760348110129,0.10066471,197.96,197.92,85.45254648]
[1760348110449,10.14672537,197.93,197.92,80.4]
[1760348111344,4.63741828,197.93,197.92,80.4]
[1760348111820,9.68970949,197.93,197.92,80.4]
[1760348113328,15.2077343,197.93,197.92,80.4]
[1760348114632,15.31599568,197.93,197.92,80.4]
[1760348115650,27.94672371,197.93,197.87,80.4]
[1760348115835,9.50544309,197.88,197.87,80.4]
[1760348116032,10.15544309,197.88,197.87,80.4]
[1760348116233,10.15544309,197.88,197.75,214.5]
[1760348116439,9.50544309,197.83,197.77,0.69]
[1760348116649,9.50544309,197.83,197.79,20.8]
[1760348116840,10.19544309,197.83,197.79,20.8]
[1760348117261,9.50544309,197.84,197.79,20.8]
[1760348117464,10.19544309,197.84,197.79,0.68]
[1760348117642,10.19544309,197.84,197.8,5.05561172]
[1760348117839,0.69,197.84,197.8,5.05561172]
[1760348118034,9.50544309,197.84,197.8,5.05561172]
[1760348118255,0.69,197.83,197.8,5.05561172]
[1760348118435,0.69,197.82,197.79,85.45582015]
[1760348118957,0.69,197.81,197.78,80.4]
[1760348119142,0.69,197.8,197.78,80.4]
[1760348120555,10.19544309,197.82,197.78,80.4]
[1760348121359,10.19544309,197.82,197.78,85.45611402]
[1760348121745,0.69,197.81,197.78,85.45611402]
[1760348122077,9.50544309,197.82,197.78,85.45611402]
[1760348122078,0.69,197.84,197.78,98.09642143]
[1760348122236,10.19544309,197.87,197.8,9.50544309]
[1760348122433,9.50544309,197.85,197.79,10.18544309]
[1760348122630,10.19544309,197.85,197.79,10.18544309]
[1760348123451,10.19544309,197.85,197.8,5.05561172]
[1760348124162,9.50544309,197.81,197.78,80.4]
[1760348124340,10.19544309,197.8,197.76,5.05660807]
[1760348124538,0.69,197.83,197.77,0.68]
[1760348124743,10.19544309,197.83,197.77,0.68]
[1760348125561,10.19544309,197.83,197.78,5.05612296]
[1760348125766,0.69,197.82,197.78,5.05612296]
[1760348126061,0.69,197.85,197.78,27.20187346]
[1760348126256,9.50544309,197.84,197.78,27.88187346]
[1760348126463,9.50544309,197.86,197.8,9.50544309]
[1760348127338,9.50544309,197.86,197.81,5.05535614]
[1760348127634,0.69,197.89,197.82,10.18544309]
[1760348127840,9.50544309,197.87,197.81,17.69374651]
[1760348128042,9.50544309,197.84,197.8,20.8]
[1760348128246,9.50544309,197.84,197.8,25.85558862]
[1760348128454,10.19544309,197.84,197.8,25.85558862]
[1760348128665,9.50544309,197.85,197.8,26.53558862]
[1760348128864,10.19544309,197.84,197.8,25.85558862]
[1760348129066,10.19544309,197.83,197.8,25.85558862]
[1760348129370,0.69,197.82,197.8,5.05558862]
[1760348130257,9.50544309,197.83,197.8,5.05558862]
[1760348130459,0.69,197.83,197.78,17.69643037]
[1760348130668,0.69,197.83,197.78,27.88187346]
[1760348131745,10.19544309,197.86,197.79,10.18544309]
[1760348131971,10.22544309,197.88,197.81,9.50544309]
[1760348132352,10.22544309,197.87,197.81,20.8]
[1760348132553,9.50544309,197.86,197.82,5.05510059]
[1760348132753,0.72,197.85,197.82,5.05510059]
[1760348133981,9.50544309,197.86,197.82,5.05510059]
[1760348134155,9.50544309,197.86,197.8,13.34896794]
[1760348134156,10.22544309,197.86,197.81,5.05535614]
[1760348134649,0.09367505,197.82,197.81,25.85535614]
[1760348135253,0.09367505,197.82,197.81,26.56535614]
[1760348135661,0.81367505,197.82,197.77,12.64062362]
[1760348135869,0.72,197.81,197.8,20.8]
[1760348136080,0.09367505,197.82,197.8,20.8]
[1760348136467,0.81367505,197.82,197.8,20.8]
[1760348136981,0.72,197.81,197.78,5.05612296]
[1760348137161,4.08343013,197.82,197.78,5.05612296]
[1760348137366,0.72,197.81,197.78,5.05612296]
[1760348139489,0.09367505,197.82,197.78,5.76612296]
[1760348139786,0.81367505,197.82,197.78,5.05612296]
[1760348141185,0.72,197.81,197.78,5.05612296]
[1760348141665,0.72,197.8,197.78,80.4]
[1760348142971,0.72,197.79,197.78,80.4]
[1760348143182,3.27481445,197.79,197.78,80.4]
[1760348144475,3.27481445,197.79,197.75,5.05668586]
[1760348144872,2.55481445,197.79,197.73,5.05715293]
[1760348145073,2.55481445,197.77,197.73,5.05715293]
[1760348145372,3.27481445,197.77,197.73,5.05715293]
[1760348146092,0.72,197.8,197.75,5.05689001]
[1760348146272,3.27481445,197.79,197.75,5.05689001]
[1760348146795,2.55481445,197.79,197.75,5.05689001]
[1760348147107,3.27481445,197.79,197.75,5.05689001]
[1760348147285,0.09367505,197.82,197.75,5.05689001]
[1760348147594,3.27481445,197.81,197.75,5.05689001]
[1760348148292,0.72,197.81,197.75,5.05689001]
[1760348148475,3.27481445,197.81,197.75,17.69911504]
[1760348148670,3.27481445,197.81,197.75,20.25392949]
[1760348149694,0.72,197.81,197.77,5.05637862]
[1760348150089,3.27481445,197.81,197.77,5.05637862]
[1760348150481,0.72,197.81,197.77,5.05637862]
[1760348150791,2.6484895,197.82,197.77,5.05637862]
[1760348150989,3.23481445,197.8,197.77,5.05637862]
[1760348151292,0.68,197.79,197.77,5.05637862]
[1760348151489,3.23481445,197.8,197.77,5.05637862]
[1760348151685,2.55481445,197.78,197.74,20.8]
[1760348151873,2.55481445,197.76,197.72,5.25761548]
[1760348152077,3.23481445,197.77,197.72,5.91761548]
[1760348152395,0.68,197.77,197.72,5.91761548]
[1760348152571,0.68,197.76,197.72,0.2]
[1760348152776,3.23481445,197.76,197.72,0.2]
[1760348153974,0.68,197.75,197.72,0.2]
[1760348154785,0.10928736,197.73,197.72,0.2]
[1760348155480,0.10928736,197.73,197.72,5.25765326]
[1760348159404,0.10928736,197.73,197.72,8.47246771]
[1760348161206,0.10928736,197.73,197.72,5.91765326]
[1760348161393,0.10928736,197.73,197.72,8.47246771]
[1760348161703,0.10928736,197.73,197.72,5.91765326]
[1760348161910,0.10928736,197.73,197.72,5.25765326]
[1760348162810,0.10928736,197.73,197.72,8.47246771]
[1760348163799,0.09387397,197.74,197.72,8.47246771]
[1760348164108,0.09387397,197.74,197.73,3.21481445]
[1760348164406,0.09538179,197.75,197.74,31.67647521]
[1760348164613,0.09992674,197.76,197.74,34.89128966]
[1760348164785,0.09992674,197.76,197.75,3.21481445]
[1760348165698,0.09992674,197.76,197.75,5.05689001]
[1760348166007,0.09992674,197.76,197.75,25.85689001]
[1760348167507,0.09992674,197.76,197.75,28.41170446]
[1760348167711,0.09992674,197.76,197.75,88.67170446]
[1760348168008,0.09653221,197.79,197.77,91.18335609]
[1760348168308,0.09653221,197.79,197.78,2.55481445]
[1760348168516,0.09653221,197.79,197.78,3.21481445]
[1760348168711,1e-08,197.8,197.79,23.65054746]
[1760348168914,1e-08,197.82,197.8,31.67647521]
[1760348169115,1e-08,197.82,197.81,13.43128966]
[1760348169329,0.68,197.92,197.85,31.67647521]
[1760348169490,0.68,197.92,197.85,32.33647521]
[1760348169686,12.62811768,197.98,197.86,5.05407864]
[1760348169687,3.23481445,197.91,197.86,5.05407864]
[1760348169910,0.68,197.9,197.86,5.05407864]
[1760348170116,0.68,197.89,197.86,5.05407864]
[1760348171500,3.23481445,197.88,197.85,5.05429277]
[1760348171805,5.05253149,197.93,197.85,5.05429277]
[1760348171992,0.68,197.88,197.85,5.05429277]
[1760348172189,2.55481445,197.91,197.85,5.05429277]
[1760348172502,0.68,197.9,197.85,5.05429277]
[1760348172698,0.68,197.89,197.85,5.05429277]
[1760348172899,0.68,197.88,197.85,5.05429277]
[1760348173101,0.68,197.91,197.86,23.35481445]
[1760348173296,0.68,197.9,197.87,2.55481445]
[1760348173599,0.68,197.92,197.89,5.05331244]
[1760348173806,0.68,197.91,197.89,5.05331244]
[1760348174020,2.55481445,197.93,197.89,5.05331244]
[1760348174200,0.68,197.92,197.89,5.05331244]
[1760348174707,0.09569603,197.9,197.89,5.05331244]
[1760348175811,0.09569603,197.9,197.89,85.36019332]
[1760348176131,0.09569603,197.9,197.89,109.37500777]
[1760348176308,0.09569603,197.9,197.89,254.35148298]
[1760348176502,0.09569603,197.9,197.89,233.55148298]
[1760348177623,0.09569603,197.9,197.89,219.46019332]
[1760348178094,0.09569603,197.9,197.89,222.01500777]
[1760348179100,0.09569603,197.9,197.89,219.46019332]
[1760348179508,0.09569603,197.9,197.89,222.01500777]
[1760348179712,0.09569603,197.9,197.89,222.73500777]
[1760348181117,0.09569603,197.9,197.89,19.2046021]
[1760348182699,0.10955507,197.92,197.9,34.23128966]
[1760348182906,1e-08,197.95,197.94,20.8]
[1760348183113,1e-08,197.95,197.94,23.35481445]
[1760348183314,1e-08,197.96,197.94,34.95128966]
[1760348183514,1e-08,197.97,197.96,10.87647521]
[1760348183715,1e-08,197.98,197.96,13.43128966]
[1760348183917,1e-08,197.98,197.97,24.07481445]
[1760348184123,1e-08,198.01,198.0,31.67647521]
[1760348184304,1e-08,198.01,198.0,49.50105251]
[1760348184502,1e-08,198.01,198.0,50.22105251]
[1760348184704,1e-08,198.01,198.0,40.00179471]
[1760348185712,1e-08,198.01,198.0,39.28179471]
[1760348186128,1e-08,198.01,198.0,50.22105251]
[1760348186633,1e-08,198.01,198.0,39.3445773]
[1760348186810,1e-08,198.01,198.0,40.00179471]
[1760348187527,1e-08,198.01,198.0,39.28179471]
[1760348188013,1e-08,198.01,198.0,36.72698026]
[1760348188327,1e-08,198.01,198.0,39.28179471]
[1760348189217,1e-08,198.01,198.0,40.00179471]
[1760348189702,1e-08,198.01,198.0,39.28179471]
[1760348190104,1e-08,198.01,198.0,41.30675231]
[1760348190306,1e-08,198.01,198.0,7.6053195]
[1760348190516,1e-08,198.01,198.0,28.4053195]
[1760348190816,0.67000001,198.01,198.0,28.4053195]
[1760348191022,1e-08,198.01,198.0,7.6053195]
[1760348193025,1e-08,198.01,198.0,5.05050505]
[1760348193236,1e-08,198.01,198.0,7.6053195]
[1760348194813,0.10824764,198.01,198.0,7.6053195]
[1760348195445,0.10824764,198.01,198.0,5.05050505]
[1760348195616,0.10824764,198.01,198.0,7.6053195]
[1760348198135,0.77824764,198.01,198.0,5.05050505]
[1760348198437,0.77824764,198.01,198.0,28.4053195]
[1760348199249,0.09843478,198.03,198.01,31.67647521]
[1760348199551,0.09843478,198.03,198.02,14.85636755]
[1760348199843,0.09843478,198.03,198.02,19.9063625]
[1760348200025,0.09843478,198.03,198.02,21.9311151]
[1760348200421,0.76843478,198.03,198.02,11.05463989]
[1760348200638,0.76843478,198.03,198.02,9.02988729]
[1760348201546,0.76843478,198.03,198.02,5.04999495]
[1760348201720,4.74832712,198.03,197.96,10.87647521]
[1760348202044,0.67,198.02,197.97,3.97989234]
[1760348202237,0.67,198.01,197.97,3.97989234]
[1760348202439,0.67,198.0,197.96,24.77989234]
[1760348202636,0.67,197.99,197.98,20.8]
[1760348202942,0.67,197.99,197.94,3.97989234]
[1760348203246,0.67,197.98,197.94,3.97989234]
[1760348203538,0.67,197.98,197.95,25.8515828]
[1760348203729,0.67,197.97,197.95,25.8515828]
[1760348203933,0.67,197.96,197.95,25.8515828]
[1760348204138,0.67,197.96,197.95,5.0515828]
[1760348204716,0.67,197.96,197.93,17.68301315]
[1760348204937,0.67,197.96,197.93,21.66290549]
[1760348205435,0.67,197.96,197.94,3.97989234]
[1760348205640,0.7,197.98,197.95,3.97989234]
[1760348205836,0.7,197.97,197.95,3.97989234]
[1760348206538,0.7,197.97,197.96,5.05152556]
[1760348206841,3.97989234,198.0,197.96,5.05152556]
[1760348207189,3.97989234,198.0,197.93,5.05229121]
[1760348207445,5.14842461,198.03,197.94,3.97989234]
[1760348207654,0.7,197.99,197.94,3.97989234]
[1760348207825,0.7,197.98,197.94,3.97989234]
[1760348208026,0.7,197.97,197.94,3.97989234]
[1760348208226,3.97989234,198.01,197.95,3.97989234]
[1760348208444,0.7,198.0,197.95,3.97989234]
[1760348208641,0.7,197.99,197.96,5.05152556]
[1760348208847,0.7,198.01,197.98,3.97989234]
[1760348209146,0.7,198.0,197.98,3.97989234]
[1760348209353,0.7,197.99,197.98,3.97989234]
[1760348209732,0.7,197.99,197.97,3.97989234]
[1760348209935,5.1482315,198.03,197.97,3.97989234]
[1760348210250,0.7,198.02,197.98,3.97989234]
[1760348210431,0.7,198.01,197.98,3.97989234]
[1760348210640,0.7,198.0,197.98,9.03078958]
[1760348210957,0.7,197.99,197.98,9.03078958]
[1760348212235,0.79843478,198.03,197.98,43.11832771]
[1760348212431,0.7,198.02,198.0,3.97989234]
[1760348212630,0.7,198.02,198.01,5.05024998]
[1760348214139,0.7,198.02,198.0,5.05050505]
[1760348214852,0.1068091,198.01,198.0,5.05050505]
[1760348215553,0.8068091,198.01,197.99,5.05073191]
[1760348215754,0.7,198.0,197.99,5.05073191]
[1760348217042,0.1068091,198.01,197.99,5.05073191]
[1760348217241,0.8068091,198.01,197.99,5.05073191]
[1760348217450,0.1068091,198.01,197.99,9.03062425]
[1760348218561,0.1068091,198.01,198.0,3.97989234]
[1760348219660,0.1068091,198.01,198.0,41.3668726]
[1760348219960,0.11074604,198.02,198.01,20.8]
[1760348220163,0.11074604,198.02,198.01,24.77989234]
[1760348220566,0.11074604,198.02,198.01,36.31636755]
[1760348220760,1e-08,198.03,198.02,14.85636755]
[1760348220968,1e-08,198.04,198.02,15.51636755]
[1760348221140,0.29956415,198.05,198.02,15.51636755]
[1760348221141,1e-08,198.05,198.04,10.87647521]
[1760348221341,1e-08,198.06,198.04,14.85636755]
[1760348221545,1e-08,198.06,198.05,9.68912233]
[1760348221981,1e-08,198.06,198.05,20.56559754]
[1760348224569,3.97989234,198.16,198.05,33.18867252]
[1760348224753,0.7,198.14,198.07,14.85636755]
[1760348225154,0.7,198.14,198.07,32.33647521]
[1760348225372,1e-08,198.1,198.09,15.92468561]
[1760348225753,1e-08,198.1,198.09,20.56457795]
[1760348226073,1e-08,198.1,198.09,235.06457795]
[1760348226275,1e-08,198.1,198.09,230.42468561]
[1760348226467,1e-08,198.1,198.09,234.40457795]
[1760348226665,1e-08,198.1,198.09,19.90457795]
[1760348228455,1e-08,198.1,198.09,235.06457795]
[1760348228770,1e-08,198.1,198.09,239.04447029]
[1760348229151,1e-08,198.1,198.09,235.06457795]
[1760348231374,1e-08,198.1,198.09,239.04447029]
[1760348231875,1e-08,198.1,198.09,24.54447029]
[1760348232473,1e-08,198.1,198.09,28.52436263]
[1760348233669,0.7,198.18,198.16,20.8]
[1760348233873,0.7,198.2,198.17,3.97989234]
[1760348234076,0.7,198.19,198.18,3.97989234]
[1760348234383,0.1,198.23,198.16,20.8]
[1760348234384,0.1,198.23,198.2,20.8]
[1760348234592,0.1,198.23,198.21,5.04515412]
[1760348234593,0.7,198.22,198.21,5.04515412]
[1760348234886,0.10340454,198.22,198.21,9.02504646]
[1760348235274,0.10340454,198.22,198.21,20.56152167]
[1760348235667,0.10340454,198.22,198.21,22.58412425]
[1760348236184,0.10340454,198.22,198.21,17.94423191]
[1760348236478,0.10340454,198.22,198.21,21.92412425]
[1760348236692,0.10340454,198.22,198.21,19.90152167]
[1760348237069,0.81340454,198.22,198.21,29.82504646]
[1760348237271,0.81340454,198.22,198.21,25.84515412]
[1760348237672,0.10340454,198.22,198.21,29.82504646]
[1760348237879,0.81340454,198.22,198.21,29.82504646]
[1760348238079,0.81340454,198.22,198.21,25.84515412]
[1760348238282,0.81340454,198.22,198.21,29.82504646]
[1760348238692,0.81340454,198.22,198.21,20.8]
[1760348238863,0.81340454,198.22,198.16,14.85636755]
[1760348239064,0.71,198.21,198.16,14.85636755]
[1760348239284,0.71,198.2,198.19,20.8]
[1760348239781,0.71,198.2,198.13,17.66459939]
[1760348239982,0.71,198.19,198.14,14.85636755]
[1760348240263,0.71,198.18,198.17,20.8]
[1760348241991,4.68989234,198.18,198.11,5.04770077]
[1760348242184,3.97989234,198.16,198.11,5.04770077]
[1760348242369,0.71,198.15,198.09,19.90433379]
[1760348242769,0.71,198.14,198.09,40.70433379]
[1760348242985,0.71,198.13,198.09,5.04796624]
[1760348243187,0.71,198.12,198.08,5.04846526]
[1760348243389,0.71,198.2,198.12,10.87647521]
[1760348243607,0.71,198.19,198.16,3.97989234]
[1760348243772,0.71,198.18,198.16,3.97989234]
[1760348244380,5.14833578,198.22,198.15,3.97989234]
[1760348244576,0.71,198.17,198.11,20.8]
[1760348244765,0.71,198.16,198.12,3.97989234]
[1760348245095,0.71,198.18,198.16,5.04642712]
[1760348245464,0.71,198.17,198.16,5.04642712]
[1760348245667,0.81340454,198.22,198.17,10.87647521]
[1760348245868,0.71,198.21,198.17,3.97989234]
[1760348246079,0.71,198.2,198.16,5.04642712]
[1760348246281,0.71,198.19,198.13,20.8]
[1760348246594,0.71,198.18,198.13,20.8]
[1760348246793,0.71,198.17,198.13,20.8]
[1760348246972,0.71,198.16,198.13,20.8]
[1760348247173,0.71,198.15,198.13,25.8470535]
[1760348247393,0.71,198.17,198.13,29.82694584]
[1760348247586,0.71,198.16,198.13,29.82694584]
[1760348247782,3.97989234,198.19,198.13,25.8470535]
[1760348248096,0.71,198.16,198.13,25.8470535]
[1760348248301,0.71,198.15,198.13,25.8470535]
[1760348248795,0.71,198.15,198.12,5.04743408]
[1760348248978,0.71,198.14,198.1,10.87647521]
[1760348249174,0.71,198.13,198.09,10.87647521]
[1760348249368,0.71,198.12,198.08,5.04846526]
[1760348249582,0.71,198.11,198.08,5.04846526]
[1760348249780,0.71,198.1,198.07,10.87647521]
[1760348249986,3.97989234,198.13,198.07,10.87647521]
[1760348249987,0.71,198.09,198.07,10.87647521]
[1760348250186,3.97989234,198.13,198.06,5.04885614]
[1760348250401,0.71,198.09,198.06,5.04885614]
[1760348252297,3.97989234,198.12,198.06,3.97989234]
[1760348252496,0.71,198.11,198.06,3.97989234]
[1760348252693,3.97989234,198.12,198.06,3.97989234]
[1760348252694,0.71,198.1,198.06,3.97989234]
[1760348252890,0.71,198.09,198.06,14.85636755]
[1760348253196,0.71,198.1,198.06,14.85636755]
[1760348253579,3.97989234,198.12,198.06,14.85636755]
[1760348253781,0.71,198.11,198.06,14.85636755]
[1760348254302,0.71,198.11,198.07,5.04872014]
[1760348254490,0.71,198.1,198.07,5.04872014]
[1760348254695,0.09596094,198.08,198.07,5.04872014]
[1760348257490,0.09596094,198.08,198.06,19.90534116]
[1760348257799,0.09596094,198.08,197.97,0.68]
[1760348257800,4.68989234,198.07,197.97,0.68]
[1760348257997,3.97989234,198.03,197.97,5.05127039]
[1760348258208,0.71,198.02,197.97,5.05127039]
[1760348258384,0.71,198.01,197.97,5.05127039]
[1760348258588,4.68989234,198.0,197.96,5.44]
[1760348258774,3.97989234,197.98,197.96,5.44]
[1760348258979,3.97989234,197.97,197.96,5.44]
[1760348259202,4.68989234,197.97,197.96,5.44]
[1760348259381,3.2609679,197.97,197.96,5.44]
[1760348259586,8.31223829,197.97,197.96,5.44]
[1760348259796,3.2609679,197.97,197.96,5.44]
[1760348260198,8.31223829,197.97,197.96,5.44]
[1760348260784,20.94041427,197.97,197.9,0.2]
[1760348260984,2.5509679,197.91,197.9,0.2]
[1760348261488,3.2609679,197.91,197.9,0.2]
[1760348263606,7.09099087,197.91,197.9,0.2]
[1760348264386,0.71,197.91,197.9,0.2]
[1760348264596,7.09099087,197.91,197.9,0.2]
[1760348265087,20.8,197.96,197.9,0.2]
[1760348265296,0.67,197.95,197.9,5.2530533]
[1760348265486,7.05099087,197.94,197.9,5.2530533]
[1760348266305,6.38099087,197.92,197.9,0.2]
[1760348266693,7.09099087,197.92,197.9,0.2]
[1760348266890,0.71,197.92,197.9,0.2]
[1760348267721,20.8,197.98,197.9,0.2]
[1760348267722,0.71,197.98,197.9,5.25294798]
[1760348267883,6.38099087,197.97,197.91,7.03099087]
[1760348268086,6.38099087,197.96,197.91,6.38099087]
[1760348268398,7.09099087,197.96,197.9,11.63393885]
[1760348268813,0.71,197.97,197.91,6.38099087]
[1760348268992,6.38099087,197.96,197.91,6.38099087]
[1760348269184,7.09099087,197.96,197.91,6.38099087]
[1760348269883,0.71,197.95,197.9,17.88559072]
[1760348270086,0.71,197.95,197.91,6.38099087]
[1760348270486,6.38099087,197.96,197.91,6.38099087]
[1760348270701,7.09099087,197.96,197.91,6.38099087]
[1760348270906,7.09099087,197.96,197.92,5.05254648]
[1760348271121,7.09099087,197.96,197.91,5.05277101]
[1760348271122,0.71,197.95,197.91,5.05277101]
[1760348271414,0.71,197.95,197.91,11.43376188]
[1760348272314,6.38099087,197.96,197.91,12.08376188]
[1760348272617,7.09099087,197.96,197.91,12.08376188]
[1760348273014,12.62498737,198.02,197.91,24.06576632]
[1760348273207,6.38099087,198.0,197.95,6.38099087]
[1760348273415,0.71,198.02,197.95,6.38099087]
[1760348273620,0.71,198.02,197.96,6.38099087]
[1760348273917,6.38099087,198.05,198.0,6.38099087]
[1760348274113,6.38099087,198.06,198.01,7.03099087]
[1760348274501,7.09099087,198.06,198.01,6.38099087]
[1760348274693,0.10868096,198.02,198.01,6.38099087]
[1760348274919,7.19967183,198.02,197.98,5.05101525]
[1760348275100,7.09099087,198.01,197.96,25.85130093]
[1760348275296,7.09099087,198.0,197.96,25.85130093]
[1760348276620,0.71,198.0,197.96,25.85130093]
[1760348277308,0.71,197.99,197.96,5.05130093]
[1760348278114,0.71,197.98,197.94,5.05203597]
[1760348278317,6.38099087,197.95,197.93,25.85226388]
[1760348278619,7.09099087,197.95,197.93,25.85226388]
[1760348279197,5.05033961,198.01,197.93,25.85226388]
[1760348279395,6.38099087,197.95,197.93,5.05226388]
[1760348279730,7.09099087,197.94,197.9,5.25303249]
[1760348280032,7.09099087,197.93,197.9,5.25303249]
[1760348280535,6.38099087,197.91,197.9,0.2]
[1760348280820,7.09099087,197.91,197.9,0.2]
[1760348281707,12.14379264,197.91,197.9,0.2]
[1760348283921,12.63014684,197.94,197.9,0.2]
[1760348283922,0.71,197.93,197.9,0.2]
[1760348284125,6.38099087,197.91,197.9,0.2]
[1760348284825,6.38099087,197.91,197.9,80.6]
[1760348286424,12.14379264,197.91,197.9,80.6]
[1760348286826,12.14379264,197.91,197.9,0.2]
[1760348288510,5.05278036,197.92,197.9,0.2]
[1760348288834,6.38099087,197.91,197.9,0.2]
[1760348289637,7.09099087,197.91,197.9,0.2]
[1760348290525,12.14379264,197.91,197.9,0.2]
[1760348292745,0.71,197.96,197.9,0.2]
[1760348292952,6.38099087,197.92,197.9,0.2]
[1760348293239,7.09099087,197.91,197.9,0.2]
[1760348293445,6.38099087,197.91,197.9,0.2]
[1760348293653,7.09099087,197.91,197.9,0.2]
[1760348293949,17.96746608,197.91,197.81,5.0553244]
[1760348294235,6.38099087,197.85,197.81,5.0553244]
[1760348294437,6.38099087,197.85,197.82,0.65]
[1760348294754,0.10040306,197.83,197.8,27.38099087]
[1760348295247,0.10040306,197.83,197.81,0.65]
[1760348295451,0.10040306,197.83,197.82,0.65]
[1760348296718,0.10040306,197.83,197.82,12.08609146]
[1760348297133,0.10040306,197.83,197.82,5.70510059]
[1760348297318,0.10040306,197.83,197.82,22.96256667]
[1760348299712,0.10040306,197.83,197.82,5.05510059]
[1760348299915,0.10040306,197.83,197.82,12.13609146]
[1760348300128,0.10040306,197.83,197.82,23.01256667]
[1760348301630,0.10894928,197.84,197.83,10.87647521]
[1760348301833,0.09308641,197.85,197.83,232.45746608]
[1760348302136,0.09308641,197.85,197.84,27.88099087]
[1760348302556,0.09308641,197.85,197.84,21.5]
[1760348302736,0.09308641,197.85,197.84,38.75746608]
[1760348303746,0.09308641,197.85,197.84,43.81205564]
[1760348304529,0.09308641,197.85,197.84,37.43106477]
[1760348304750,0.09308641,197.85,197.82,11.43594152]
[1760348304934,0.09308641,197.85,197.83,6.38099087]
[1760348305344,0.09308641,197.85,197.83,3.25297872]
[1760348305653,0.09308641,197.85,197.84,5.05458956]
[1760348306659,0.78308641,197.85,197.83,5.05479765]
[1760348307045,0.09308641,197.85,197.83,5.05479765]
[1760348307754,0.09308641,197.85,197.82,12.63775149]
[1760348308136,0.78308641,197.85,197.81,5.05535614]
[1760348308860,0.69,197.84,197.81,5.05535614]
[1760348309162,0.09308641,197.85,197.8,5.25556583]
[1760348309163,3.24297872,197.83,197.8,5.25556583]
[1760348309379,0.69,197.82,197.8,5.25556583]
[1760348309662,2.64606513,197.85,197.8,5.25556583]
[1760348309866,0.09308641,197.85,197.8,5.25556583]
[1760348310038,8.29756828,197.84,197.8,0.2]
[1760348310235,5.74458956,197.84,197.8,0.2]
[1760348311365,5.14747199,197.85,197.8,0.2]
[1760348311570,0.09308641,197.85,197.81,2.55297872]
[1760348311744,0.09308641,197.85,197.81,7.60825426]
[1760348312152,0.78308641,197.85,197.81,7.60825426]
[1760348312658,0.09308641,197.85,197.81,7.60825426]
[1760348312863,0.69,197.84,197.8,5.25555092]
[1760348313165,0.69,197.83,197.8,5.25555092]